lending/lending_fUSD_20251020
["ID","MTS","AMOUNT","RATE_DAILY","PERIOD"]
[391898992,1760965932176,151.0,0.00034365,30]
[391898993,1760965932335,151.56674562,0.00034365,30]
[391898994,1760965932562,500.0,0.00034365,30]
[391898995,1760965932669,500.0,0.00034365,30]
[391898996,1760965932839,151.0,0.00034365,30]
[391898997,1760965932884,500.0,0.00034365,30]
[391898998,1760965933353,500.0,0.00034365,30]
[391898999,1760965933492,151.0,0.00034365,30]
[391899000,1760965933536,500.0,0.00034365,30]
[391899001,1760965933574,500.0,0.00034365,30]
[391899002,1760965933897,250.0,0.00034365,30]
[391899003,1760965934270,500.0,0.00034365,30]
[391899004,1760965934518,200.0,0.00034365,30]
[391899005,1760965934574,250.0,0.00034365,30]
[391899006,1760965934917,500.0,0.00034365,30]
[391899007,1760965935413,250.0,0.00034365,30]
[391899008,1760965935570,500.0,0.00034365,30]
[391899009,1760965936083,250.0,0.00034365,30]
[391899010,1760965936199,500.0,0.00034365,30]
[391899011,1760965936789,250.0,0.00034365,30]
[391899012,1760965936859,500.0,0.00034365,30]
[391899013,1760965937279,200.0,0.00034365,30]
[391899014,1760965937475,250.0,0.00034365,30]
[391899015,1760965937539,500.0,0.00034365,30]
[391899016,1760965937936,200.0,0.00034365,30]
[391899017,1760965937973,500.0,0.00034365,30]
[391899018,1760965938228,500.0,0.00034365,30]
[391899019,1760965938605,500.0,0.00034365,30]
[391899020,1760965939084,500.0,0.00034365,30]
[391899021,1760965939298,500.0,0.00034365,30]
[391899022,1760965939654,500.0,0.00034365,30]
[391899023,1760965939953,500.0,0.00034365,30]
[391899024,1760965940377,500.0,0.00034365,30]
[391899025,1760965940626,500.0,0.00034365,30]
[391899026,1760965941036,500.0,0.00034365,30]
[391899027,1760965941214,298.42990577,0.00034365,30]
[391899028,1760965941747,500.0,0.00034365,30]
[391899029,1760965944977,250.0,0.00034365,30]
[391899030,1760965945651,250.0,0.00034365,30]
[391899031,1760965946589,250.0,0.00034365,30]
[391899032,1760965947283,250.0,0.00034365,30]
[391899033,1760965947960,250.0,0.00034365,30]
[391899034,1760965948572,250.0,0.00034365,30]
[391899036,1760965985920,1500.0,0.00029422,120]
[391899037,1760966018140,151.2,0.00013,2]
[391899038,1760966164239,150.85698122,0.00029414,120]
[391899040,1760966226157,3583.12,0.00028663,120]
[391899041,1760966226227,182.8403524,0.00034365,30]
[391899042,1760966227888,213.10427336,0.00034365,30]
[391899043,1760966229347,500.0,0.00034365,30]
[391899044,1760966230012,500.0,0.00034365,30]
[391899045,1760966230643,500.0,0.00034365,30]
[391899046,1760966231326,500.0,0.00034365,30]
[391899047,1760966232141,500.0,0.00034365,30]
[391899048,1760966239501,327.11785589,0.00034362,30]
[391899050,1760966285280,195.0,0.0002852,120]
[391899077,1760966322846,150.0,0.00029632,120]
[391899078,1760966402145,151.5,0.00034362,30]
[391899086,1760966525710,185.63536261,0.00034362,30]
[391899094,1760966553748,1500.0,0.00029692,120]
[391899111,1760966758375,-195.28861688,0.000139,2]
[391899112,1760966760823,-509.24173072,0.000139,2]
[391899113,1760966767699,500.21215508,0.00034362,30]
[391899114,1760966767966,-334.13804531,0.000139,2]
[391899115,1760966769424,-250.0,0.000139,2]
[391899116,1760966772357,-458.84,0.000139,2]
[391899117,1760966774249,-255.88023511,0.000139,2]
[391899118,1760966775648,-582.63512091,0.000139,2]
[391899124,1760966783409,14021.50926766,0.00034362,30]
[391899133,1760966913246,2706.28401297,0.0001,2]
[391899134,1760966923082,7827.3939764,0.0001,2]
[391899150,1760967031603,-159.87559116,0.000139,2]
[391899151,1760967031613,-1496.5673,0.00014825,2]
[391899152,1760967031622,-1139.69195993,0.000149,2]
[391899153,1760967031631,-163.27122339,0.000149,2]
[391899154,1760967031640,-500.0,0.00014973,2]
[391899155,1760967031650,-500.73416328,0.00014973,2]
[391899156,1760967031660,-500.0,0.00014973,2]
[391899157,1760967031670,-201.67462191,0.0001499,2]
[391899158,1760967031679,-1200.0,0.00014998,2]
[391899159,1760967031688,-300.0,0.00014998,2]
[391899160,1760967031705,-500.0,0.00014999,2]
[391899161,1760967031716,-327.21387449,0.00014999,2]
[391899162,1760967031726,-179.10352048,0.00014999,2]
[391899163,1760967031736,-313.89876204,0.00014999,2]
[391899164,1760967031746,-150.0,0.00014999,2]
[391899165,1760967031756,-15334.50887329,0.00015,2]
[391899166,1760967031768,-3514.57720003,0.00015,2]
[391899339,1760967039607,-151033.25290615,0.00015,2]
[391899364,1760967039832,-1023.24592403,0.00015,2]
[391899366,1760967039843,-1666.92887226,0.00015,2]
[391899368,1760967039855,-2144.62797461,0.00015,2]
[391899371,1760967039870,-2000.0,0.00015,2]
[391899373,1760967039882,-3670.10718,0.00015,2]
[391899375,1760967039897,-1911.81020171,0.00015,2]
[391899378,1760967039912,-2798.09999924,0.00015,2]
[391899380,1760967039923,-601.41729426,0.00015,2]
[391899645,1760967042684,-340653.09734275,0.00015,2]
[391899652,1760967042798,-695717.61060921,0.00015,2]
[391899660,1760967042900,-356.89589779,0.00015,2]
[391899918,1760967045865,-2175.51709916,0.000149,2]
[391899919,1760967045876,-280.48289084,0.00015,2]
[391899920,1760967045889,-470.05995234,0.00015,2]
[391900004,1760967121650,159.09,0.0002597,120]
[391900005,1760967121869,159.09,0.00028567,120]
[391900006,1760967126614,200.0,0.00034362,30]
[391900007,1760967126986,500.0,0.00034362,30]
[391900008,1760967130050,500.0,0.00034362,30]
[391900009,1760967130939,500.0,0.00034362,30]
[391900010,1760967131394,250.0,0.00034362,30]
[391900011,1760967131830,500.0,0.00034362,30]
[391900012,1760967132128,250.0,0.00034362,30]
[391900013,1760967132454,200.0,0.00034362,30]
[391900014,1760967132499,500.0,0.00034362,30]
[391900015,1760967133003,250.0,0.00034362,30]
[391900016,1760967133150,500.0,0.00034362,30]
[391900017,1760967134030,250.0,0.00034362,30]
[391900018,1760967134078,151.0,0.00034362,30]
[391900019,1760967134122,500.0,0.00034362,30]
[391900020,1760967134697,250.0,0.00034362,30]
[391900021,1760967134731,151.0,0.00034362,30]
[391900022,1760967135327,500.0,0.00034362,30]
[391900023,1760967135372,250.0,0.00034362,30]
[391900024,1760967135462,151.0,0.00034362,30]
[391900025,1760967136005,500.0,0.00034362,30]
[391900026,1760967136100,250.0,0.00034362,30]
[391900027,1760967136343,151.0,0.00034362,30]
[391900028,1760967136677,500.0,0.00034362,30]
[391900029,1760967136997,151.0,0.00034362,30]
[391900030,1760967137030,250.0,0.00034362,30]
[391900031,1760967137399,500.0,0.00034362,30]
[391900032,1760967137684,151.0,0.00034362,30]
[391900033,1760967137717,500.0,0.00034362,30]
[391900034,1760967138301,500.0,0.00034362,30]
[391900035,1760967138346,151.0,0.00034362,30]
[391900036,1760967138716,500.0,0.00034362,30]
[391900037,1760967138956,500.0,0.00034362,30]
[391900038,1760967139493,500.0,0.00034362,30]
[391900039,1760967139589,151.0,0.00034362,30]
[391900040,1760967139976,500.0,0.00034362,30]
[391900041,1760967140053,223.29573649,0.00034362,30]
[391900042,1760967140151,500.0,0.00034362,30]
[391900043,1760967140270,151.0,0.00034362,30]
[391900044,1760967140832,500.0,0.00034362,30]
[391900045,1760967141405,151.0,0.00034362,30]
[391900046,1760967141576,500.0,0.00034362,30]
[391900047,1760967142273,151.0,0.00034362,30]
[391900048,1760967142396,500.0,0.00034362,30]
[391900049,1760967143121,500.0,0.00034362,30]
[391900050,1760967143808,500.0,0.00034362,30]
[391900051,1760967144517,500.0,0.00034362,30]
[391900052,1760967145201,500.0,0.00034362,30]
[391900071,1760967425633,500.0,0.00034362,30]
[391900072,1760967426339,425.88808416,0.00034362,30]
[391900073,1760967426415,500.0,0.00034362,30]
[391900074,1760967429279,500.0,0.00034362,60]
[391900075,1760967429547,500.0,0.00034362,60]
[391900076,1760967430715,160.15730937,0.00034362,30]
[391900077,1760967440940,2061.34817692,0.00034362,60]
[391900121,1760967957424,3546.47,0.0003435,30]
[391900123,1760968079783,500.0,0.0003435,60]
[391900129,1760968201328,-739.2702097,0.00014577,2]
[391900130,1760968201352,-225.06053739,0.00014699,2]
[391900131,1760968201375,-193.70625838,0.00014799,2]
[391900132,1760968201398,-830.20361,0.0001485,2]
[391900133,1760968201421,-1050.0627,0.00014891,2]
[391900134,1760968201445,-176.48089741,0.000149,2]
[391900135,1760968201467,-161.80636963,0.000149,2]
[391900136,1760968201494,-2683.81161743,0.000149,2]
[391900137,1760968201518,-153.06677197,0.000149,2]
[391900138,1760968201544,-2301.40669672,0.000149,2]
[391900139,1760968201569,-500.0,0.00014973,2]
[391900140,1760968201592,-500.0,0.00014973,2]
[391900141,1760968201615,-500.0,0.00014973,2]
[391900142,1760968201638,-364.4054542,0.00014973,2]
[391900143,1760968201660,-201.67462191,0.0001499,2]
[391900144,1760968201684,-150.0,0.0001499,2]
[391900145,1760968201706,-631.33,0.00014991,2]
[391900146,1760968201729,-587.835,0.00014991,2]
[391900147,1760968201752,-151.0,0.00014991,2]
[391900148,1760968201777,-151.0,0.00014991,2]
[391900149,1760968201799,-151.0,0.00014991,2]
[391900150,1760968201823,-151.0,0.00014991,2]
[391900151,1760968201849,-151.0,0.00014991,2]
[391900152,1760968201873,-151.0,0.00014991,2]
[391900153,1760968201896,-151.0,0.00014991,2]
[391900154,1760968201919,-151.0,0.00014991,2]
[391900155,1760968201943,-151.0,0.00014991,2]
[391900156,1760968201968,-151.0,0.00014991,2]
[391900157,1760968201992,-151.0,0.00014991,2]
[391900158,1760968202017,-151.0,0.00014991,2]
[391900159,1760968202040,-151.0,0.00014991,2]
[391900160,1760968202063,-151.0,0.00014991,2]
[391900161,1760968202087,-151.0,0.00014991,2]
[391900162,1760968202110,-151.0,0.00014991,2]
[391900163,1760968202134,-151.0,0.00014991,2]
[391900164,1760968202157,-151.0,0.00014991,2]
[391900165,1760968202182,-151.0,0.00014991,2]
[391900166,1760968202205,-151.0,0.00014991,2]
[391900167,1760968202227,-151.0,0.00014991,2]
[391900168,1760968202251,-151.0,0.00014991,2]
[391900169,1760968202276,-161.43415915,0.00014991,2]
[391900170,1760968202301,-151.0,0.00014991,2]
[391900171,1760968202323,-151.0,0.00014991,2]
[391900172,1760968202345,-151.0,0.00014991,2]
[391900173,1760968202366,-151.0,0.00014991,2]
[391900174,1760968202389,-151.0,0.00014991,2]
[391900175,1760968202411,-151.0,0.00014991,2]
[391900176,1760968202433,-151.0,0.00014991,2]
[391900177,1760968202454,-151.0,0.00014991,2]
[391900178,1760968202476,-225.816144,0.00014991,2]
[391900179,1760968202654,-151.0,0.00014991,2]
[391900180,1760968202676,-151.0,0.00014991,2]
[391900181,1760968202705,-151.0,0.00014991,2]
[391900182,1760968202730,-151.0,0.00014991,2]
[391900183,1760968202753,-151.0,0.00014991,2]
[391900184,1760968202776,-151.0,0.00014991,2]
[391900185,1760968202799,-151.0,0.00014991,2]
[391900186,1760968202823,-151.0,0.00014991,2]
[391900187,1760968202847,-151.0,0.00014991,2]
[391900188,1760968202869,-151.0,0.00014991,2]
[391900189,1760968202892,-151.0,0.00014991,2]
[391900190,1760968202915,-151.0,0.00014991,2]
[391900191,1760968202937,-151.0,0.00014991,2]
[391900192,1760968202960,-151.0,0.00014991,2]
[391900193,1760968202984,-151.0,0.00014991,2]
[391900194,1760968203008,-151.0,0.00014991,2]
[391900195,1760968203036,-151.0,0.00014991,2]
[391900196,1760968203060,-151.0,0.00014991,2]
[391900197,1760968203086,-151.0,0.00014991,2]
[391900198,1760968203108,-151.0,0.00014991,2]
[391900199,1760968203136,-155.0,0.00014998,2]
[391900200,1760968203161,-254.09287018,0.00014999,2]
[391900201,1760968203189,-500.0,0.00014999,2]
[391900202,1760968203213,-510.94648971,0.00014999,2]
[391900203,1760968203237,-500.0,0.00014999,2]
[391900204,1760968203260,-500.0,0.00014999,2]
[391900205,1760968203284,-500.0,0.00014999,2]
[391900206,1760968203309,-500.0,0.00014999,2]
[391900207,1760968203332,-500.0,0.00014999,2]
[391900208,1760968203355,-184.53333602,0.00014999,2]
[391900209,1760968203378,-500.0,0.00014999,2]
[391900210,1760968203401,-500.0,0.00014999,2]
[391900211,1760968203424,-500.0,0.00014999,2]
[391900212,1760968203451,-500.0,0.00014999,2]
[391900213,1760968203475,-500.0,0.00014999,2]
[391900214,1760968203504,-296.76915704,0.00014999,2]
[391900215,1760968203530,-525.56104424,0.00014999,2]
[391900216,1760968203553,-500.0,0.00014999,2]
[391900217,1760968203576,-500.0,0.00014999,2]
[391900218,1760968203599,-500.0,0.00014999,2]
[391900219,1760968203621,-500.0,0.00014999,2]
[391900220,1760968203643,-500.0,0.00014999,2]
[391900221,1760968203665,-500.0,0.00014999,2]
[391900222,1760968203689,-500.0,0.00014999,2]
[391900223,1760968203711,-500.0,0.00014999,2]
[391900224,1760968203734,-500.0,0.00014999,2]
[391900225,1760968203757,-183.07,0.00014999,2]
[391900226,1760968203780,-500.0,0.00014999,2]
[391900227,1760968203803,-500.0,0.00014999,2]
[391900228,1760968203825,-500.0,0.00014999,2]
[391900229,1760968203848,-500.0,0.00014999,2]
[391900230,1760968203875,-500.0,0.00014999,2]
[391900231,1760968203897,-500.0,0.00014999,2]
[391900232,1760968203920,-506.66296033,0.00014999,2]
[391900233,1760968203947,-500.0,0.00014999,2]
[391900234,1760968203969,-500.0,0.00014999,2]
[391900235,1760968203992,-150.0,0.00014999,2]
[391900236,1760968204015,-150.0,0.00014999,2]
[391900237,1760968204038,-150.0,0.00014999,2]
[391900238,1760968204060,-500.0,0.00014999,2]
[391900239,1760968204085,-500.0,0.00014999,2]
[391900240,1760968204111,-500.0,0.00014999,2]
[391900241,1760968204136,-500.0,0.00014999,2]
[391900242,1760968204161,-500.0,0.00014999,2]
[391900243,1760968204188,-500.0,0.00014999,2]
[391900244,1760968204211,-500.0,0.00014999,2]
[391900245,1760968204234,-500.0,0.00014999,2]
[391900246,1760968204257,-500.0,0.00014999,2]
[391900247,1760968204281,-525.04997993,0.00014999,2]
[391900248,1760968204305,-500.0,0.00014999,2]
[391900249,1760968204328,-500.0,0.00014999,2]
[391900250,1760968204361,-429.08949793,0.00014999,2]
[391900251,1760968204390,-8458.77,0.00014999,2]
[391900252,1760968204415,-8458.77,0.00014999,2]
[391900253,1760968204439,-8458.77,0.00014999,2]
[391900254,1760968204463,-8458.77,0.00014999,2]
[391900255,1760968204491,-8458.77,0.00014999,2]
[391900256,1760968204515,-8458.77,0.00014999,2]
[391900257,1760968204540,-8458.77,0.00014999,2]
[391900258,1760968204565,-8458.77,0.00014999,2]
[391900259,1760968204590,-8458.77,0.00014999,2]
[391900260,1760968204613,-500.0,0.00014999,2]
[391900261,1760968204638,-500.0,0.00014999,2]
[391900262,1760968204663,-500.0,0.00014999,2]
[391900263,1760968204690,-500.0,0.00014999,2]
[391900264,1760968204720,-312581.46211317,0.00015,2]
[391900265,1760968204745,-2811.29,0.00015,10]
[391900266,1760968204767,-1145.39422586,0.00015,10]
[391900267,1760968204792,-1734948.68496852,0.00015,2]
[391900268,1760968204953,300.0,0.0001499,2]
[391900269,1760968205035,300.0,0.0001499,2]
[391900270,1760968205123,1200.0,0.0001499,2]
[391900271,1760968205687,7817.66,0.0001499,2]
[391900272,1760968205917,7817.66,0.0001499,2]
[391900273,1760968207074,739.2702098,0.0001465,2]
[391900283,1760968231764,-200.0,0.00015,2]
[391900284,1760968231774,-200.0,0.0001515,2]
[391900285,1760968231783,-631.33,0.00015265,2]
[391900286,1760968231793,-200.0,0.00015301,2]
[391900287,1760968231802,-200.0,0.00015455,2]
[391900288,1760968231811,-631.33,0.00015539,2]
[391900289,1760968231821,-175.91,0.00015678,2]
[391900290,1760968231831,-631.33,0.00015813,2]
[391900291,1760968231841,-517.92,0.00015842,2]
[391900292,1760968231851,-281.45502503,0.0001585,2]
[391900293,1760968231863,-491.0360497,0.0001585,2]
[391900294,1760968231874,-57.71254527,0.0001585,2]
[391900295,1760968231883,-284.77060557,0.00015926,2]
[391900296,1760968231898,-572.77289877,0.00015926,2]
[391900297,1760968231908,-142.45649566,0.00015926,2]
[391900298,1760968231918,-631.33,0.00016087,2]
[391900299,1760968231927,-250.0,0.00016147,2]
[391900300,1760968231937,-1681.87108889,0.00016169,2]
[391900301,1760968231946,-988.57776196,0.00016169,2]
[391900302,1760968231957,-176.18,0.00016278,2]
[391900303,1760968231967,-1093.6,0.00016278,2]
[391900304,1760968231976,-176.18,0.00016278,2]
[391900305,1760968231986,-631.33,0.00016361,2]
[391900306,1760968231997,-1680.0,0.00016489,2]
[391900307,1760968232006,-304.32965918,0.0001649,2]
[391900308,1760968232016,-300.0,0.000165,2]
[391900309,1760968232025,-631.33,0.00016635,2]
[391900310,1760968232034,-830.20361,0.0001685,2]
[391900311,1760968232044,-631.38,0.00016909,2]
[391900312,1760968232055,-250.0,0.00017,2]
[391900313,1760968232065,-2683.8116174,0.00017045,2]
[391900314,1760968232075,-2080.98426314,0.00017045,2]
[391900315,1760968232087,-220.42243352,0.00017045,2]
[391900316,1760968232097,-391.87155708,0.00017246,2]
[391900317,1760968232106,-830.20362,0.0001785,2]
[391900318,1760968232117,-1000.0,0.00017917,2]
[391900319,1760968232128,-500.0,0.00017999,2]
[391900320,1760968232139,-8458.77,0.00017999,2]
[391900321,1760968232149,-125474.97512176,0.00018,2]
[391900322,1760968232162,-33238.44032469,0.00018,2]
[391900323,1760968232176,-1004.41808677,0.00018,2]
[391900324,1760968232192,-56203.03601112,0.00018,2]
[391900325,1760968232201,-1000.0,0.00018082,2]
[391900326,1760968232213,-162.89,0.00018145,2]
[391900327,1760968232223,-531.52725251,0.00018154,2]
[391900328,1760968232232,-100059.0187081,0.00018155,2]
[391900329,1760968232240,-20010.02757581,0.00018155,2]
[391900330,1760968232256,-606.48713533,0.00018155,2]
[391900333,1760968232267,-1306.14632808,0.00018155,2]
[391900336,1760968232281,-1009.87494404,0.00018155,2]
[391900339,1760968232295,-1740.94816339,0.00018155,2]
[391900343,1760968232307,-440.56810984,0.00018155,2]
[391900344,1760968232318,-1255.96697889,0.00018155,2]
[391900345,1760968232331,-510.0,0.00018155,2]
[391900346,1760968232354,-434.26595563,0.00018155,2]
[391900524,1760968239823,-500.0,0.00017999,2]
[391900526,1760968239833,-622.47842705,0.00017999,2]
[391900529,1760968239843,-9.47077123,0.00017999,2]
[391900534,1760968239881,-304.24526487,0.00017999,2]
[391900536,1760968239892,-439.09516239,0.00017999,2]
[391900538,1760968239901,-500.0,0.00017999,2]
[391900540,1760968239910,-263.36467048,0.00017999,2]
[391900542,1760968239919,-3629.58472109,0.00018155,2]
[391900544,1760968239931,-1111.3,0.00018155,2]
[391900546,1760968239942,-49865.2061587,0.00018155,2]
[391900548,1760968239951,-11754.2215765,0.00018155,2]
[391900550,1760968239962,-1809.042645,0.00018155,2]
[391900552,1760968239971,-1809.042645,0.00018155,2]
[391900554,1760968239980,-1809.042645,0.00018155,2]
[391900556,1760968239989,-1809.042645,0.00018155,2]
[391900558,1760968239997,-501.76089721,0.00018173,2]
[391900560,1760968240007,-500.0,0.00018173,2]
[391900562,1760968240016,-500.0,0.00018173,2]
[391900564,1760968240026,-500.0,0.00018173,2]
[391900566,1760968240037,-8458.77,0.00018355,2]
[391900568,1760968240047,-73430.34,0.00018356,2]
[391900570,1760968240058,-247.88568406,0.00018721,2]
[391900572,1760968240067,-1000.0,0.00018721,2]
[391900574,1760968240076,-1000.0,0.0001876,2]
[391900576,1760968240086,-830.20361,0.0001885,2]
[391900578,1760968240096,-463.44760459,0.00019,2]
[391900580,1760968240106,-300.0,0.00019,2]
[391900582,1760968240115,-2683.8116174,0.00019189,2]
[391900584,1760968240124,-2301.40669666,0.00019189,2]
[391900586,1760968240134,-250.0,0.00019261,2]
[391900588,1760968240143,-1149.80737838,0.00019268,2]
[391900590,1760968240152,-1000.0,0.00019438,2]
[391900591,1760968240161,-830.20362,0.0001985,2]
[391900593,1760968240172,-1000.0,0.00019907,2]
[391900595,1760968240183,-5150.8313932,0.00019995,2]
[391900597,1760968240192,-1000.0,0.00020116,2]
[391900599,1760968240202,-150.99,0.00020145,2]
[391900601,1760968240211,-9999.99,0.00020145,2]
[391900604,1760968240221,-150.99,0.00020145,2]
[391900605,1760968240231,-9999.99,0.00020145,2]
[391900607,1760968240240,-1138.69,0.00020145,2]
[391900610,1760968240250,-22326.1848686,0.00020465,2]
[391900612,1760968240260,-18278.9066321,0.00020465,2]
[391900614,1760968240271,-200.0,0.00020742,2]
[391900616,1760968240280,-159.09,0.00020776,2]
[391900617,1760968240290,-1000.0,0.00020795,2]
[391900619,1760968240300,-4981.6452052,0.0002098,2]
[391900621,1760968240309,-4078.5753641,0.0002098,2]
[391900624,1760968240321,-2622.7213427,0.00021022,2]
[391900626,1760968240331,-2683.8116174,0.00021334,2]
[391900627,1760968240343,-2301.40669666,0.00021334,2]
[391900629,1760968240353,-585.2082332,0.00021662,2]
[391900632,1760968240362,-1000.0,0.00021898,2]
[391900633,1760968240371,-275.40218155,0.00021975,2]
[391900636,1760968240381,-2751.0,0.00022123,2]
[391900638,1760968240391,-151.0,0.00023288,7]
[391900639,1760968240400,-151.0,0.00023288,7]
[391900642,1760968240411,-151.0,0.00023288,7]
[391900643,1760968240421,-151.0,0.00023288,7]
[391900646,1760968240431,-151.0,0.00023288,7]
[391900647,1760968240440,-151.0,0.00023288,7]
[391900649,1760968240451,-151.0,0.00023288,7]
[391900651,1760968240462,-159.09,0.00023373,2]
[391900653,1760968240471,-2683.8116174,0.00023479,2]
[391900655,1760968240481,-2301.40669666,0.00023479,2]
[391900657,1760968240493,-582.23,0.00023836,2]
[391900659,1760968240502,-1000.0,0.00023889,2]
[391900661,1760968240513,-1809.042645,0.00024799,7]
[391900663,1760968240522,-1809.042645,0.00024799,7]
[391900665,1760968240533,-8458.77,0.00024799,2]
[391900667,1760968240543,-1809.042645,0.00024799,7]
[391900669,1760968240552,-1809.042645,0.00024799,7]
[391900672,1760968240565,-243.058307,0.000248,7]
[391900674,1760968240574,-151.0,0.000248,7]
[391900676,1760968240583,-151.0,0.000248,7]
[391900677,1760968240593,-151.0,0.000248,7]
[391900679,1760968240602,-249.89956,0.000248,7]
[391900682,1760968240612,-151.0,0.000248,7]
[391900684,1760968240621,-151.0,0.000248,7]
[391900700,1760968240759,-151.0,0.000248,7]
[391900702,1760968240769,-151.0,0.000248,7]
[391900704,1760968240778,-151.0,0.000248,7]
[391900706,1760968240787,-151.0,0.000248,7]
[391900708,1760968240796,-158.606015,0.000248,7]
[391900710,1760968240805,-433457.41099,0.000248,3]
[391900712,1760968240814,-1809.042645,0.000248,7]
[391900714,1760968240823,-1809.042645,0.000248,7]
[391900716,1760968240833,-1809.042645,0.000248,7]
[391900718,1760968240843,-1809.042645,0.000248,7]
[391900720,1760968240852,-150.16,0.0002489,2]
[391900722,1760968240862,-8458.77,0.00024899,2]
[391900724,1760968240871,-8458.77,0.00024899,2]
[391900726,1760968240880,-151.0,0.000249,7]
[391900728,1760968240890,-151.0,0.000249,7]
[391900730,1760968240900,-151.0,0.000249,7]
[391900732,1760968240909,-151.0,0.000249,7]
[391900734,1760968240918,-390930.90982,0.000249,3]
[391900736,1760968240927,-1809.042645,0.000249,7]
[391900738,1760968240937,-1809.042645,0.000249,7]
[391900740,1760968240946,-1809.042645,0.000249,7]
[391900742,1760968240955,-1809.042645,0.000249,7]
[391900744,1760968240965,-1075.68,0.00024904,2]
[391900746,1760968240974,-351.45,0.00024904,2]
[391900748,1760968240983,-413.94,0.00024904,2]
[391900750,1760968240994,-413.94,0.00024904,2]
[391900752,1760968241003,-413.11,0.00024904,2]
[391900754,1760968241012,-1000.0,0.00025,20]
[391900756,1760968241021,-1000.0,0.00025,20]
[391900758,1760968241031,-1000.0,0.00025,20]
[391900760,1760968241040,-1000.0,0.00025,20]
[391900762,1760968241050,-1000.0,0.00025,20]
[391900764,1760968241059,-1000.0,0.00025,20]
[391900766,1760968241068,-1000.0,0.00025,20]
[391900768,1760968241078,-1000.0,0.00025,20]
[391900770,1760968241087,-1000.0,0.00025,20]
[391900772,1760968241096,-1000.0,0.00025,20]
[391900774,1760968241106,-1000.0,0.00025,20]
[391900776,1760968241115,-1000.0,0.00025,20]
[391900778,1760968241125,-1000.0,0.00025,20]
[391900780,1760968241133,-1000.0,0.00025,20]
[391900782,1760968241143,-1000.0,0.00025,20]
[391900784,1760968241154,-1000.0,0.00025,20]
[391900786,1760968241164,-1000.0,0.00025,20]
[391900788,1760968241174,-1000.0,0.00025,20]
[391900790,1760968241183,-1000.0,0.00025,20]
[391900792,1760968241194,-1000.0,0.00025,20]
[391900794,1760968241204,-1000.0,0.00025,20]
[391900796,1760968241216,-1000.0,0.00025,20]
[391900799,1760968241226,-1000.0,0.00025,20]
[391900801,1760968241235,-1000.0,0.00025,20]
[391900803,1760968241244,-1000.0,0.00025,20]
[391900805,1760968241253,-1000.0,0.00025,20]
[391900807,1760968241262,-1000.0,0.00025,20]
[391900809,1760968241272,-1000.0,0.00025,20]
[391900811,1760968241281,-1000.0,0.00025,20]
[391900813,1760968241290,-1000.0,0.00025,20]
[391900815,1760968241299,-1000.0,0.00025,20]
[391900817,1760968241308,-1000.0,0.00025,20]
[391900819,1760968241318,-2683.8116174,0.00025623,2]